Workbook

Sheet Sheet1
A1: 3-Horse | G1: 50
A2: 1st Selection | B2: 2.8 | C2: =SUM( 100/B2)% -> 0.3571428571 | D2: =SUM(C2) -> 0.3571428571 | E2: =(E4+E5)/(B2-1) -> 10.06017459
A4: 2nd Selection | B4: 4.37 | C4: 0.2288329519 | D4: =SUM(C2+C4) -> 0.5859758091 | E4: =G1/B4 -> 11.4416476
A5: 3rd Selection | B5: 7.5 | C5: 0.1333333333 | D5: =SUM(C2+C4+C5) -> 0.7193091424 | E5: =G1/B5 -> 6.666666667
C6: =C4+C5 -> 0.3621662853 | E6: =SUM(E2:E5) -> 28.16848885 | G6: Invest 45.37
A8: If 2nd and 3rd Favourite win 40% of the time | G8: 29% - You return $45.37 | J8: 0
A9: And 31% you win nothing. | G9: 31% - Lose | J9: =-E6 -> -28.16848885 | K9: =31*J9 -> -873.2231545 | L9: LOSE
A10: 29% Favourite | G10: 40% - Win | J10: =50+J9 -> 21.83151115 | K10: =J10*40 -> 873.2604458 | L10: PROFIT

Sheet Sheet2
B1: 0.6 | C1: 0.625 | D1: 0.65 | E1: 0.675 | F1: 0.7 | G1: 0.725 | H1: 0.75 | I1: 0.775 | J1: 0.8
A2: 0.9 | B2: =(((10*$L$2)*B1))-20 -> -13.34 | C2: =(((10*$L$2)*C1))-20 -> -13.0625 | D2: -12.785 | E2: -12.5075 | F2: -12.23 | G2: -11.9525 | H2: -11.675 | I2: -11.3975 | J2: -11.12 | L2: 1.11
A3: 0.85 | B3: =(((10*$L$3)*B1))-20 -> -9.5 | C3: =(((10*$L$3)*C1))-20 -> -9.0625 | D3: -8.625 | E3: -8.1875 | F3: -7.75 | G3: -7.3125 | H3: -6.875 | I3: -6.4375 | J3: -6 | L3: 1.75
A4: 0.8 | B4: =(((10*$L$4)*B1))-20 -> -5 | C4: =(((10*$L$4)*C1))-20 -> -4.375 | D4: -3.75 | E4: -3.125 | F4: -2.5 | G4: -1.875 | H4: -1.25 | I4: -0.625 | J4: 0 | L4: 2.5
A5: 0.75 | B5: =(((10*$L$5)*B1))-20 -> -0.02 | C5: =(((10*$L$5)*C1))-20 -> 0.8125 | D5: 1.645 | E5: 2.4775 | F5: 3.31 | G5: 4.1425 | H5: 4.975 | I5: 5.8075 | J5: 6.64 | L5: 3.33
A6: 0.7 | B6: =(((10*$L$6)*B1))-20 -> 5.62 | C6: =(((10*$L$6)*C1))-20 -> 6.6875 | D6: 7.755 | E6: 8.8225 | F6: 9.89 | G6: 10.9575 | H6: 12.025 | I6: 13.0925 | J6: 14.16 | L6: 4.27
A7: 0.65 | B7: =(((10*$L$7)*B1))-20 -> 12.4 | C7: =(((10*$L$7)*C1))-20 -> 13.75 | D7: 15.1 | E7: 16.45 | F7: 17.8 | G7: 19.15 | H7: 20.5 | I7: 21.85 | J7: 23.2 | L7: 5.4
A8: 0.6 | B8: =(((10*$L$8)*B1))-20 -> 20.2 | C8: =(((10*$L$8)*C1))-20 -> 21.875 | D8: 23.55 | E8: 25.225 | F8: 26.9 | G8: 28.575 | H8: 30.25 | I8: 31.925 | J8: 33.6 | L8: 6.7
A9: 0.55 | B9: =(((10*$L$9)*B1))-20 -> 29.2 | C9: =(((10*$L$9)*C1))-20 -> 31.25 | D9: 33.3 | E9: 35.35 | F9: 37.4 | G9: 39.45 | H9: 41.5 | I9: 43.55 | J9: 45.6 | L9: 8.2
A10: 0.5 | B10: =(((10*$L$10)*B1))-20 -> 40 | C10: =(((10*$L$10)*C1))-20 -> 42.5 | D10: 45 | E10: 47.5 | F10: 50 | G10: 52.5 | H10: 55 | I10: 57.5 | J10: 60 | L10: 10
B12: 0.6 | C12: 0.625 | D12: 0.65 | E12: 0.675 | F12: 0.7 | G12: 0.725 | H12: 0.75 | I12: 0.775 | J12: 0.8
A13: 0.9 | B13: =B2/100 -> -0.1334 | C13: =C2/100 -> -0.130625 | D13: -0.12785 | E13: -0.125075 | F13: -0.1223 | G13: -0.119525 | H13: -0.11675 | I13: -0.113975 | J13: -0.1112
A14: 0.85 | B14: =B3/100 -> -0.095 | C14: -0.090625 | D14: -0.08625 | E14: -0.081875 | F14: -0.0775 | G14: -0.073125 | H14: -0.06875 | I14: -0.064375 | J14: -0.06
A15: 0.8 | B15: =B4/100 -> -0.05 | C15: -0.04375 | D15: -0.0375 | E15: -0.03125 | F15: -0.025 | G15: -0.01875 | H15: -0.0125 | I15: -0.00625 | J15: 0
A16: 0.75 | B16: =B5/100 -> -0.0002 | C16: 0.008125 | D16: 0.01645 | E16: 0.024775 | F16: 0.0331 | G16: 0.041425 | H16: 0.04975 | I16: 0.058075 | J16: 0.0664
A17: 0.7 | B17: =B6/100 -> 0.0562 | C17: 0.066875 | D17: 0.07755 | E17: 0.088225 | F17: 0.0989 | G17: 0.109575 | H17: 0.12025 | I17: 0.130925 | J17: 0.1416
A18: 0.65 | B18: =B7/100 -> 0.124 | C18: 0.1375 | D18: 0.151 | E18: 0.1645 | F18: 0.178 | G18: 0.1915 | H18: 0.205 | I18: 0.2185 | J18: 0.232
A19: 0.6 | B19: =B8/100 -> 0.202 | C19: 0.21875 | D19: 0.2355 | E19: 0.25225 | F19: 0.269 | G19: 0.28575 | H19: 0.3025 | I19: 0.31925 | J19: 0.336
A20: 0.55 | B20: =B9/100 -> 0.292 | C20: 0.3125 | D20: 0.333 | E20: 0.3535 | F20: 0.374 | G20: 0.3945 | H20: 0.415 | I20: 0.4355 | J20: 0.456
A21: 0.5 | B21: =B10/100 -> 0.4 | C21: 0.425 | D21: 0.45 | E21: 0.475 | F21: 0.5 | G21: 0.525 | H21: 0.55 | I21: 0.575 | J21: 0.6

Sheet Sheet3
